fUSD/lending_fUSD_20250217
["ID","MTS","AMOUNT","RATE_DAILY","PERIOD"]
[353318875,1739758254414,-181.941246,0.00013945,2]
[353318876,1739758254423,-1135.601013,0.00013945,2]
[353318877,1739758254432,-516.81667969,0.00013945,2]
[353318878,1739758254442,-10000.0,0.00013945,2]
[353318879,1739758254451,-1135.601013,0.00013945,2]
[353318880,1739758254460,-500.0,0.00013945,2]
[353318881,1739758254469,-10000.0,0.00013945,2]
[353318882,1739758254483,-500.0,0.00013945,2]
[353318883,1739758254494,-151.530606,0.00013945,2]
[353318884,1739758254504,-524.79784695,0.00013945,2]
[353318885,1739758254514,-151.0,0.00013945,2]
[353318886,1739758254524,-500.0,0.00013945,2]
[353318887,1739758254533,-500.0,0.00013945,2]
[353318888,1739758254543,-151.0,0.00013945,2]
[353318889,1739758254553,-757.22,0.00013945,2]
[353318890,1739758254564,-500.0,0.00013945,2]
[353318891,1739758254572,-500.0,0.00013945,2]
[353318892,1739758254581,-282.97988326,0.00013945,2]
[353318893,1739758254591,-500.0,0.00013945,2]
[353318894,1739758254600,-500.0,0.00013945,2]
[353318895,1739758254610,-500.0,0.00013945,2]
[353318896,1739758254619,-554.01,0.00013945,2]
[353318897,1739758254628,-500.0,0.00013945,2]
[353318898,1739758254638,-236.673984,0.00013945,2]
[353318899,1739758254648,-191.939212,0.00013945,2]
[353318900,1739758254658,-236.673984,0.00013945,2]
[353318901,1739758254667,-500.0,0.00013945,2]
[353318902,1739758254676,-685.51,0.00013945,2]
[353318903,1739758254686,-552.47,0.00013945,2]
[353318904,1739758254696,-191.939212,0.00013945,2]
[353318905,1739758254706,-507.48,0.00013945,2]
[353318906,1739758254717,-1785.37,0.00013945,2]
[353318907,1739758254726,-500.0,0.00013945,2]
[353318908,1739758254735,-500.0,0.00013945,2]
[353318909,1739758254745,-728.56,0.00013945,2]
[353318910,1739758254755,-500.0,0.00013945,2]
[353318911,1739758254763,-500.0,0.00013945,2]
[353318912,1739758254773,-500.0,0.00013945,2]
[353318913,1739758254783,-500.0,0.00013945,2]
[353318914,1739758254793,-500.0,0.00013945,2]
[353318915,1739758254802,-585.19,0.00013945,2]
[353318916,1739758254813,-787.49,0.00013945,2]
[353318917,1739758254822,-500.0,0.00013945,2]
[353318918,1739758254832,-500.0,0.00013945,2]
[353318919,1739758254841,-500.0,0.00013945,2]
[353318920,1739758254852,-844.7,0.00013945,2]
[353318921,1739758254862,-500.0,0.00013945,2]
[353318922,1739758254872,-500.0,0.00013945,2]
[353318923,1739758254883,-500.0,0.00013945,2]
[353318924,1739758254894,-500.0,0.00013945,2]
[353318925,1739758254903,-500.0,0.00013945,2]
[353318926,1739758254912,-421.68005487,0.00013945,2]
[353318927,1739758254925,-520.02,0.00013945,2]
[353318928,1739758254935,-500.0,0.00013945,2]
[353318929,1739758254946,-906.39,0.00013945,2]
[353318930,1739758254957,-500.0,0.00013945,2]
[353318931,1739758254966,-167.8642887,0.00013945,2]
[353318932,1739758254975,-500.0,0.00013945,2]
[353318933,1739758254986,-370.54485638,0.00013945,2]
[353318934,1739758254995,-500.0,0.00013945,2]
[353318935,1739758255003,-500.0,0.00013945,2]
[353318936,1739758255013,-1256.67,0.00013945,2]
[353318937,1739758255022,-643.41,0.00013945,2]
[353318938,1739758255031,-500.0,0.00013945,2]
[353318939,1739758255041,-500.0,0.00013945,2]
[353318940,1739758255050,-500.0,0.00013945,2]
[353318941,1739758255059,-518.25,0.00013945,2]
[353318942,1739758255069,-569.03,0.00013945,2]
[353318943,1739758255081,-302.716736,0.00013945,2]
[353318944,1739758255091,-500.0,0.00013945,2]
[353318945,1739758255100,-302.716736,0.00013945,2]
[353318946,1739758255109,-500.0,0.00013945,2]
[353318947,1739758255118,-500.0,0.00013945,2]
[353318948,1739758255127,-500.0,0.00013945,2]
[353318949,1739758255138,-500.0,0.00013945,2]
[353318950,1739758255148,-798.89,0.00013945,2]
[353318951,1739758255158,-500.0,0.00013945,2]
[353318952,1739758255170,-500.0,0.00013945,2]
[353318953,1739758255180,-242.99876717,0.00013945,2]
[353318954,1739758255190,-1011.50769488,0.00013945,2]
[353318955,1739758255199,-581.06,0.00013945,2]
[353318956,1739758255209,-500.0,0.00013945,2]
[353318957,1739758255218,-500.0,0.00013945,2]
[353318958,1739758255228,-500.0,0.00013945,2]
[353318959,1739758255239,-500.0,0.00013945,2]
[353318960,1739758255248,-500.0,0.00013945,2]
[353318961,1739758255258,-500.0,0.00013945,2]
[353318962,1739758255267,-663.28,0.00013945,2]
[353318963,1739758255277,-500.0,0.00013945,2]
[353318964,1739758255287,-500.0,0.00013945,2]
[353318965,1739758255297,-500.0,0.00013945,2]
[353318966,1739758255306,-500.0,0.00013945,2]
[353318967,1739758255316,-500.0,0.00013945,2]
[353318968,1739758255325,-783.36,0.00013945,2]
[353318969,1739758255335,-500.0,0.00013945,2]
[353318970,1739758255344,-500.0,0.00013945,2]
[353318971,1739758255354,-768.72,0.00013945,2]
[353318972,1739758255364,-500.0,0.00013945,2]
[353318973,1739758255373,-500.0,0.00013945,2]
[353318974,1739758255383,-197.26754543,0.00013945,2]
[353318975,1739758255393,-500.0,0.00013945,2]
[353318976,1739758255402,-500.0,0.00013945,2]
[353318977,1739758255412,-500.0,0.00013945,2]
[353318978,1739758255422,-500.0,0.00013945,2]
[353318979,1739758255432,-497.44107869,0.00013945,2]
[353318980,1739758255441,-533.7377414,0.00013945,2]
[353318981,1739758255451,-500.0,0.00013945,2]
[353318982,1739758255460,-500.0,0.00013945,2]
[353318983,1739758255469,-500.0,0.00013945,2]
[353318984,1739758255484,-500.0,0.00013945,2]
[353318985,1739758255494,-198.35069,0.00013945,2]
[353318986,1739758255503,-500.0,0.00013945,2]
[353318987,1739758255513,-500.0,0.00013945,2]
[353318988,1739758255523,-500.0,0.00013945,2]
[353318989,1739758255532,-198.35069,0.00013945,2]
[353318990,1739758255543,-500.0,0.00013945,2]
[353318991,1739758255552,-500.0,0.00013945,2]
[353318992,1739758255561,-622.66,0.00013945,2]
[353318993,1739758255570,-511.21663523,0.00013945,2]
[353318994,1739758255579,-500.0,0.00013945,2]
[353318995,1739758255588,-500.0,0.00013945,2]
[353318996,1739758255598,-500.0,0.00013945,2]
[353318997,1739758255607,-500.0,0.00013945,2]
[353318998,1739758255616,-509.66,0.00013945,2]
[353318999,1739758255625,-500.0,0.00013945,2]
[353319000,1739758255634,-500.0,0.00013945,2]
[353319001,1739758255644,-582.83200139,0.00013945,2]
[353319002,1739758255653,-500.0,0.00013945,2]
[353319003,1739758255662,-500.0,0.00013945,2]
[353319004,1739758255671,-500.0,0.00013945,2]
[353319005,1739758255681,-620.1,0.00013945,2]
[353319006,1739758255690,-777.93,0.00013945,2]
[353319007,1739758255699,-443.3,0.00013945,2]
[353319008,1739758255708,-440.1,0.00013945,2]
[353319009,1739758255718,-440.1,0.00013945,2]
[353319010,1739758255727,-435.5,0.00013945,2]
[353319011,1739758255736,-1000.0,0.00013956,2]
[353319012,1739758255745,-1000.0,0.00013972,3]
[353319013,1739758255754,-500.0,0.00013973,7]
[353319014,1739758255764,-150.0,0.00013974,2]
[353319015,1739758255773,-1000.0,0.00013989,2]
[353319016,1739758255783,-500.0,0.00013989,2]
[353319017,1739758255795,-300.0,0.0001399,2]
[353319018,1739758255805,-13244.28768523,0.0001399,2]
[353319019,1739758255814,-151.0,0.0001399,2]
[353319020,1739758255824,-151.0,0.0001399,2]
[353319021,1739758255833,-500.0,0.0001399,2]
[353319022,1739758255843,-238.081417,0.00013991,2]
[353319023,1739758255853,-196.146383,0.00013991,2]
[353319024,1739758255863,-196.146383,0.00013991,2]
[353319025,1739758255873,-168.663138,0.00013991,2]
[353319026,1739758255883,-168.663138,0.00013991,2]
[353319027,1739758255893,-1135.601013,0.00013991,2]
[353319028,1739758255903,-1135.601013,0.00013991,2]
[353319029,1739758255913,-151.0,0.00013991,2]
[353319030,1739758255923,-157.1395,0.00013991,2]
[353319031,1739758255933,-236.673984,0.00013991,2]
[353319032,1739758255942,-191.939212,0.00013991,2]
[353319033,1739758255952,-236.673984,0.00013991,2]
[353319034,1739758255961,-191.939212,0.00013991,2]
[353319035,1739758255972,-151.488258,0.00013991,2]
[353319036,1739758255982,-198.35069,0.00013991,2]
[353319037,1739758255992,-198.35069,0.00013991,2]
[353319038,1739758256002,-150.0,0.00013997,2]
[353319039,1739758256013,-2000.0,0.00013997,2]
[353319040,1739758256025,-584.12054566,0.00013999,2]
[353319041,1739758256035,-2372.06,0.00013999,2]
[353319042,1739758256047,-1336.06412032,0.00014,30]
[353319043,1739758256057,-650.0,0.00014,2]
[353319044,1739758256066,-5000.0,0.00014,15]
[353319045,1739758256076,-302.716736,0.00014,2]
[353319046,1739758256086,-230.421497,0.00014,2]
[353319047,1739758256095,-302.716736,0.00014,2]
[353319048,1739758256105,-230.421497,0.00014,2]
[353319049,1739758256114,-151.0,0.00014,2]
[353319050,1739758256124,-151.0,0.00014,2]
[353319051,1739758256134,-151.0,0.00014002,2]
[353319052,1739758256143,-151.0,0.00014002,2]
[353319053,1739758256153,-2088.411637,0.00014006,2]
[353319054,1739758256163,-2088.411637,0.00014006,2]
[353319055,1739758256173,-151.0,0.00014006,2]
[353319056,1739758256182,-1311.362731,0.00014006,2]
[353319057,1739758256192,-150.0,0.00014008,2]
[353319058,1739758256201,-579.28,0.00014008,2]
[353319059,1739758256211,-150.0,0.00014013,2]
[353319060,1739758256221,-300.0,0.00014026,2]
[353319061,1739758256231,-1000.0,0.00014026,2]
[353319062,1739758256241,-151.0,0.00014027,2]
[353319063,1739758256251,-151.0,0.00014027,2]
[353319064,1739758256260,-151.0,0.00014027,2]
[353319065,1739758256271,-232.592084,0.00014027,2]
[353319066,1739758256281,-232.592084,0.00014027,2]
[353319067,1739758256293,-321.343028,0.00014027,2]
[353319068,1739758256303,-321.343028,0.00014027,2]
[353319069,1739758256314,-225.45372,0.00014027,2]
[353319070,1739758256324,-225.45372,0.00014027,2]
[353319071,1739758256334,-151.755808,0.00014027,2]
[353319072,1739758256343,-151.0,0.00014027,2]
[353319073,1739758256353,-323.015556,0.00014027,2]
[353319074,1739758256363,-151.0,0.00014027,2]
[353319075,1739758256372,-323.015556,0.00014027,2]
[353319076,1739758256382,-253.050725,0.00014027,2]
[353319077,1739758256391,-253.050725,0.00014027,2]
[353319078,1739758256400,-894.397479,0.00014027,2]
[353319079,1739758256409,-894.397479,0.00014027,2]
[353319080,1739758256419,-151.0,0.00014027,2]
[353319081,1739758256428,-533.418353,0.00014027,2]
[353319082,1739758256438,-265.34263417,0.00014027,2]
[353319083,1739758256448,-586.38,0.00014027,2]
[353319084,1739758256457,-433.820513,0.00014027,2]
[353319085,1739758256466,-500.0,0.00014027,2]
[353319086,1739758256479,-500.0,0.00014027,2]
[353319087,1739758256489,-500.0,0.00014027,2]
[353319088,1739758256498,-500.0,0.00014027,2]
[353319089,1739758256508,-500.0,0.00014027,2]
[353319090,1739758256519,-500.0,0.00014027,2]
[353319091,1739758256529,-500.0,0.00014027,2]
[353319092,1739758256540,-500.0,0.00014027,2]
[353319093,1739758256550,-500.0,0.00014027,2]
[353319094,1739758256560,-500.0,0.00014027,2]
[353319095,1739758256570,-257.346698,0.00014027,2]
[353319096,1739758256580,-884.831135,0.00014027,2]
[353319097,1739758256589,-257.346698,0.00014027,2]
[353319098,1739758256598,-884.831135,0.00014027,2]
[353319099,1739758256608,-500.0,0.00014027,2]
[353319100,1739758256617,-500.0,0.00014027,2]
[353319101,1739758256626,-553.65,0.00014027,2]
[353319102,1739758256635,-500.0,0.00014027,2]
[353319103,1739758256645,-500.0,0.00014027,2]
[353319104,1739758256654,-273.37207962,0.00014027,2]
[353319105,1739758256663,-500.0,0.00014027,2]
[353319106,1739758256672,-500.0,0.00014027,2]
[353319107,1739758256681,-500.0,0.00014027,2]
[353319108,1739758256690,-500.0,0.00014027,2]
[353319109,1739758256700,-500.0,0.00014027,2]
[353319110,1739758256709,-500.0,0.00014027,2]
[353319111,1739758256835,-393.34737552,0.00014027,2]
[353319112,1739758256859,-477.82256201,0.00014027,2]
[353319113,1739758256870,-500.0,0.00014027,2]
[353319114,1739758256879,-500.0,0.00014027,2]
[353319115,1739758256888,-324.951276,0.00014027,2]
[353319116,1739758256898,-324.951276,0.00014027,2]
[353319117,1739758256907,-500.0,0.00014027,2]
[353319118,1739758256916,-500.0,0.00014027,2]
[353319119,1739758256925,-194.375824,0.00014027,2]
[353319120,1739758256935,-194.375824,0.00014027,2]
[353319121,1739758256944,-500.0,0.00014027,2]
[353319122,1739758256954,-10000.0,0.00014027,2]
[353319123,1739758256963,-500.0,0.00014027,2]
[353319124,1739758256972,-10000.0,0.00014027,2]
[353319125,1739758256981,-500.0,0.00014027,2]
[353319126,1739758256990,-500.0,0.00014027,2]
[353319127,1739758256999,-513.00022907,0.00014027,2]
[353319128,1739758257008,-757.22,0.00014027,2]
[353319129,1739758257018,-500.0,0.00014027,2]
[353319130,1739758257027,-500.0,0.00014027,2]
[353319131,1739758257038,-500.0,0.00014027,2]
[353319132,1739758257047,-500.0,0.00014027,2]
[353319133,1739758257056,-500.0,0.00014027,2]
[353319134,1739758257066,-554.01,0.00014027,2]
[353319135,1739758257075,-500.0,0.00014027,2]
[353319136,1739758257084,-500.0,0.00014027,2]
[353319137,1739758257094,-685.51,0.00014027,2]
[353319138,1739758257103,-552.47,0.00014027,2]
[353319139,1739758257113,-507.48,0.00014027,2]
[353319140,1739758257122,-1785.37,0.00014027,2]
[353319141,1739758257131,-451.75906669,0.00014027,2]
[353319142,1739758257140,-500.0,0.00014027,2]
[353319143,1739758257149,-728.56,0.00014027,2]
[353319144,1739758257158,-500.0,0.00014027,2]
[353319145,1739758257167,-500.0,0.00014027,2]
[353319146,1739758257177,-500.0,0.00014027,2]
[353319147,1739758257186,-500.0,0.00014027,2]
[353319148,1739758257195,-500.0,0.00014027,2]
[353319149,1739758257205,-585.19,0.00014027,2]
[353319150,1739758257214,-787.49,0.00014027,2]
[353319151,1739758257223,-500.0,0.00014027,2]
[353319152,1739758257233,-500.0,0.00014027,2]
[353319153,1739758257243,-500.0,0.00014027,2]
[353319154,1739758257254,-844.7,0.00014027,2]
[353319155,1739758257264,-500.0,0.00014027,2]
[353319156,1739758257273,-500.0,0.00014027,2]
[353319157,1739758257284,-500.0,0.00014027,2]
[353319158,1739758257298,-500.0,0.00014027,2]
[353319159,1739758257308,-500.0,0.00014027,2]
[353319160,1739758257318,-520.02,0.00014027,2]
[353319161,1739758257328,-500.0,0.00014027,2]
[353319162,1739758257338,-906.39,0.00014027,2]
[353319163,1739758257348,-500.0,0.00014027,2]
[353319164,1739758257358,-500.0,0.00014027,2]
[353319165,1739758257367,-500.0,0.00014027,2]
[353319166,1739758257377,-500.0,0.00014027,2]
[353319167,1739758257387,-1256.67,0.00014027,2]
[353319168,1739758257396,-643.41,0.00014027,2]
[353319169,1739758257406,-500.0,0.00014027,2]
[353319170,1739758257415,-500.0,0.00014027,2]
[353319171,1739758257425,-500.0,0.00014027,2]
[353319172,1739758257434,-518.25,0.00014027,2]
[353319173,1739758257443,-569.03,0.00014027,2]
[353319174,1739758257453,-500.0,0.00014027,2]
[353319175,1739758257462,-577.8398557,0.00014027,2]
[353319176,1739758257471,-500.0,0.00014027,2]
[353319177,1739758257486,-500.0,0.00014027,2]
[353319178,1739758257495,-513.83699757,0.00014027,2]
[353319179,1739758257505,-798.89,0.00014027,2]
[353319180,1739758257514,-500.0,0.00014027,2]
[353319181,1739758257523,-500.0,0.00014027,2]
[353319182,1739758257533,-581.06,0.00014027,2]
[353319183,1739758257543,-500.0,0.00014027,2]
[353319184,1739758257554,-500.0,0.00014027,2]
[353319185,1739758257564,-500.0,0.00014027,2]
[353319186,1739758257574,-610.87922343,0.00014027,2]
[353319187,1739758257583,-500.0,0.00014027,2]
[353319188,1739758257592,-500.0,0.00014027,2]
[353319189,1739758257602,-663.28,0.00014027,2]
[353319190,1739758257611,-500.0,0.00014027,2]
[353319191,1739758257620,-500.0,0.00014027,2]
[353319192,1739758257629,-500.0,0.00014027,2]
[353319193,1739758257639,-500.0,0.00014027,2]
[353319194,1739758257648,-500.0,0.00014027,2]
[353319195,1739758257657,-783.36,0.00014027,2]
[353319196,1739758257667,-500.0,0.00014027,2]
[353319197,1739758257676,-500.0,0.00014027,2]
[353319198,1739758257685,-768.72,0.00014027,2]
[353319199,1739758257695,-513.13967922,0.00014027,2]
[353319200,1739758257704,-500.0,0.00014027,2]
[353319201,1739758257713,-500.0,0.00014027,2]
[353319202,1739758257723,-500.0,0.00014027,2]
[353319203,1739758257733,-371.58082921,0.00014027,2]
[353319204,1739758257743,-500.0,0.00014027,2]
[353319205,1739758257752,-472.87662368,0.00014027,2]
[353319206,1739758257762,-500.0,0.00014027,2]
[353319207,1739758257770,-500.0,0.00014027,2]
[353319208,1739758257780,-500.0,0.00014027,2]
[353319209,1739758257789,-608.32429784,0.00014027,2]
[353319210,1739758257798,-500.0,0.00014027,2]
[353319211,1739758257807,-500.0,0.00014027,2]
[353319212,1739758257817,-500.0,0.00014027,2]
[353319213,1739758257829,-500.0,0.00014027,2]
[353319214,1739758257838,-622.66,0.00014027,2]
[353319215,1739758257848,-500.0,0.00014027,2]
[353319216,1739758257857,-500.0,0.00014027,2]
[353319217,1739758257866,-500.0,0.00014027,2]
[353319218,1739758257875,-500.0,0.00014027,2]
[353319219,1739758257885,-509.66,0.00014027,2]
[353319220,1739758257895,-500.0,0.00014027,2]
[353319221,1739758257904,-500.0,0.00014027,2]
[353319222,1739758257914,-500.0,0.00014027,2]
[353319223,1739758257924,-500.0,0.00014027,2]
[353319224,1739758257933,-500.0,0.00014027,2]
[353319225,1739758257943,-620.1,0.00014027,2]
[353319226,1739758257952,-150.0,0.00014028,2]
[353319227,1739758257961,-150.0,0.00014036,2]
[353319228,1739758257971,-150.0,0.0001404,2]
[353319229,1739758257979,-150.0,0.00014043,2]
[353319230,1739758257989,-1422.24,0.00014046,2]
[353319231,1739758257998,-150.0,0.00014047,2]
[353319232,1739758258007,-150.0,0.00014055,2]
[353319233,1739758258017,-150.0,0.00014058,2]
[353319234,1739758258026,-166.41,0.0001406,2]
[353319235,1739758258035,-1000.0,0.00014065,2]
[353319236,1739758258046,-1000.0,0.00014072,2]
[353319237,1739758258055,-150.0,0.00014077,2]
[353319238,1739758258065,-150.0,0.00014085,2]
[353319239,1739758258074,-1036.34115462,0.00014089,2]
[353319240,1739758258083,-1000.0,0.00014093,2]
[353319241,1739758258092,-150.0,0.00014099,2]
[353319242,1739758258101,-1000.0,0.000141,2]
[353319243,1739758258111,-500.0,0.00014108,2]
[353319244,1739758258120,-1000.0,0.00014108,2]
[353319245,1739758258129,-500.0,0.00014108,2]
[353319246,1739758258138,-300.0,0.00014108,2]
[353319247,1739758258147,-151.0,0.00014109,2]
[353319248,1739758258157,-151.0,0.00014109,2]
[353319249,1739758258167,-151.0,0.00014109,2]
[353319250,1739758258177,-232.592084,0.00014109,2]
[353319251,1739758258187,-232.592084,0.00014109,2]
[353319252,1739758258197,-321.343028,0.00014109,2]
[353319253,1739758258208,-321.343028,0.00014109,2]
[353319254,1739758258219,-225.45372,0.00014109,2]
[353319255,1739758258231,-225.453721,0.00014109,2]
[353319256,1739758258242,-151.0,0.00014109,2]
[353319257,1739758258251,-323.015556,0.00014109,2]
[353319258,1739758258262,-151.0,0.00014109,2]
[353319259,1739758258272,-323.015556,0.00014109,2]
[353319260,1739758258282,-253.050725,0.00014109,2]
[353319261,1739758258297,-253.050725,0.00014109,2]
[353319262,1739758258308,-151.0,0.00014109,2]
[353319263,1739758258319,-151.0,0.00014109,2]
[353319264,1739758258329,-151.0,0.00014109,2]
[353319265,1739758258340,-220.5985,0.00014109,2]
[353319266,1739758258351,-2088.411637,0.00014109,2]
[353319267,1739758258362,-2088.411637,0.00014109,2]
[353319268,1739758258371,-533.418353,0.00014109,2]
[353319269,1739758258381,-151.0,0.00014109,2]
[353319270,1739758258391,-586.38,0.00014109,2]
[353319271,1739758258401,-433.820513,0.00014109,2]
[353319272,1739758258411,-500.0,0.00014109,2]
[353319273,1739758258420,-1311.362731,0.00014109,2]
[353319274,1739758258430,-312.60768939,0.00014109,2]
[353319275,1739758258440,-500.0,0.00014109,2]
[353319276,1739758258449,-500.0,0.00014109,2]
[353319277,1739758258459,-500.0,0.00014109,2]
[353319278,1739758258468,-152.70263719,0.00014109,2]
[353319279,1739758258479,-500.0,0.00014109,2]
[353319280,1739758258489,-371.75,0.00014109,2]
[353319281,1739758258498,-500.0,0.00014109,2]
[353319282,1739758258507,-500.0,0.00014109,2]
[353319283,1739758258518,-257.346698,0.00014109,2]
[353319284,1739758258527,-884.831135,0.00014109,2]
[353319285,1739758258538,-257.346698,0.00014109,2]
[353319286,1739758258550,-884.831135,0.00014109,2]
[353319287,1739758258561,-500.0,0.00014109,2]
[353319288,1739758258571,-182.77280141,0.00014109,2]
[353319289,1739758258580,-553.65,0.00014109,2]
[353319290,1739758258589,-500.0,0.00014109,2]
[353319291,1739758258599,-500.0,0.00014109,2]
[353319292,1739758258608,-500.0,0.00014109,2]
[353319293,1739758258618,-500.0,0.00014109,2]
[353319294,1739758258627,-500.0,0.00014109,2]
[353319295,1739758258636,-500.0,0.00014109,2]
[353319296,1739758258646,-500.0,0.00014109,2]
[353319297,1739758258655,-500.0,0.00014109,2]
[353319298,1739758258665,-500.0,0.00014109,2]
[353319299,1739758258674,-500.0,0.00014109,2]
[353319300,1739758258683,-324.951276,0.00014109,2]
[353319301,1739758258692,-324.951276,0.00014109,2]
[353319302,1739758258701,-196.146383,0.00014109,2]
[353319303,1739758258710,-500.0,0.00014109,2]
[353319304,1739758258720,-196.146383,0.00014109,2]
[353319305,1739758258729,-500.0,0.00014109,2]
[353319306,1739758258738,-194.375824,0.00014109,2]
[353319307,1739758258747,-194.375824,0.00014109,2]
[353319308,1739758258756,-168.663138,0.00014109,2]
[353319309,1739758258765,-500.0,0.00014109,2]
[353319310,1739758258774,-168.663138,0.00014109,2]
[353319311,1739758258783,-1135.601013,0.00014109,2]
[353319312,1739758258794,-10000.0,0.00014109,2]
[353319313,1739758258804,-1135.601013,0.00014109,2]
[353319314,1739758258813,-500.0,0.00014109,2]
[353319315,1739758258823,-10000.0,0.00014109,2]
[353319316,1739758258832,-500.0,0.00014109,2]
[353319317,1739758258841,-151.0,0.00014109,2]
[353319318,1739758258850,-500.0,0.00014109,2]
[353319319,1739758258860,-757.22,0.00014109,2]
[353319320,1739758258869,-500.0,0.00014109,2]
[353319321,1739758258878,-500.0,0.00014109,2]
[353319322,1739758258888,-500.0,0.00014109,2]
[353319323,1739758258897,-500.0,0.00014109,2]
[353319324,1739758258906,-500.0,0.00014109,2]
[353319325,1739758258915,-554.01,0.00014109,2]
[353319326,1739758258924,-500.0,0.00014109,2]
[353319327,1739758258934,-236.673984,0.00014109,2]
[353319328,1739758258943,-191.939212,0.00014109,2]
[353319329,1739758258952,-236.673984,0.00014109,2]
[353319330,1739758258962,-500.0,0.00014109,2]
[353319331,1739758258971,-685.51,0.00014109,2]
[353319332,1739758258981,-552.47,0.00014109,2]
[353319333,1739758258990,-191.939212,0.00014109,2]
[353319334,1739758258999,-507.48,0.00014109,2]
[353319335,1739758259008,-1785.37,0.00014109,2]
[353319336,1739758259018,-500.0,0.00014109,2]
[353319337,1739758259027,-728.56,0.00014109,2]
[353319338,1739758259036,-500.0,0.00014109,2]
[353319339,1739758259047,-500.0,0.00014109,2]
[353319340,1739758259056,-500.0,0.00014109,2]
[353319341,1739758259065,-515.90816489,0.00014109,2]
[353319342,1739758259075,-500.0,0.00014109,2]
[353319343,1739758259084,-585.19,0.00014109,2]
[353319344,1739758259093,-787.49,0.00014109,2]
[353319345,1739758259102,-500.0,0.00014109,2]
[353319346,1739758259112,-500.0,0.00014109,2]
[353319347,1739758259122,-500.0,0.00014109,2]
[353319348,1739758259131,-844.7,0.00014109,2]
[353319349,1739758259141,-500.0,0.00014109,2]
[353319350,1739758259150,-500.0,0.00014109,2]
[353319351,1739758259159,-522.65206561,0.00014109,2]
[353319352,1739758259169,-500.0,0.00014109,2]
[353319353,1739758259178,-518.56460697,0.00014109,2]
[353319354,1739758259187,-520.02,0.00014109,2]
[353319355,1739758259197,-547.49722161,0.00014109,2]
[353319356,1739758259206,-906.39,0.00014109,2]
[353319357,1739758259216,-500.0,0.00014109,2]
[353319358,1739758259225,-457.60509451,0.00014109,2]
[353319359,1739758259234,-500.0,0.00014109,2]
[353319360,1739758259244,-500.0,0.00014109,2]
[353319361,1739758259253,-1256.67,0.00014109,2]
[353319362,1739758259262,-643.41,0.00014109,2]
[353319363,1739758259272,-268.25481968,0.00014109,2]
[353319364,1739758259281,-516.4143273,0.00014109,2]
[353319365,1739758259291,-500.0,0.00014109,2]
[353319366,1739758259301,-518.25,0.00014109,2]
[353319367,1739758259311,-569.03,0.00014109,2]
[353319368,1739758259320,-500.0,0.00014109,2]
[353319369,1739758259330,-302.716736,0.00014109,2]
[353319370,1739758259339,-230.421497,0.00014109,2]
[353319371,1739758259349,-302.716736,0.00014109,2]
[353319372,1739758259359,-500.0,0.00014109,2]
[353319373,1739758259369,-230.421497,0.00014109,2]
[353319374,1739758259379,-500.0,0.00014109,2]